Cogmind - Beta 10.2 @@@ ROGUE MODE // 2021.10.12 @ 22:50:42 Player: Howard Result: Destroyed by G-34 Mercenary with Small Laser Performance ------------- Evolutions (1) 500 Regions Visited (4) 800 Robots Destroyed (34) 170 Value Destroyed (807) 807 Prototype IDs (4) 80 Alien Tech Used (0) 0 Bonus (211) 211 TOTAL SCORE: 2568 Bonus ------- Follower Combat Kills 211 Cogmind --------- Core Integrity 0/400 Matter 300/300 Energy 280/280 System Corruption 1% Temperature Cool (12) Movement Rolling (120) Ox4 Location -9/Storage Parts ------- > --- POWER (1) -------- Heavy Ion Engine > --- PROPULSION (2) --- Wheel Wheel > --- UTILITY (4) ------ High-capacity Storage Unit High-capacity Storage Unit Light Armor Plating Medium Armor Plating > --- WEAPON (2) ------- Shock Maul Shock Maul > --- INVENTORY (20) --- Heavy Ion Engine Heavy Ion Engine Light Treads Light Treads Light Treads Heat Sink Large Storage Unit Large Storage Unit Visual Processing Unit Improved Signal Interpreter Small Laser Advanced Beam Cannon Heavy Assault Rifle Shock Maul Shock Maul Peak State ------------ > --- POWER ------------ Heavy Ion Engine > --- PROPULSION ------- Wheel Wheel > --- UTILITY ---------- High-capacity Storage Unit High-capacity Storage Unit Medium Armor Plating Shield Generator > --- WEAPON ----------- Shock Maul Shock Maul > --- INVENTORY -------- Heavy Ion Engine Heavy Ion Engine Light Treads Light Treads Light Treads Wheel Heat Sink Large Storage Unit Large Storage Unit Visual Processing Unit Improved Signal Interpreter Medium Armor Plating Medium Armor Plating Small Laser Improved Medium Laser Advanced Beam Cannon Heavy Assault Rifle Shock Maul Shock Maul [Rating: 27] Favorites ----------- Power Ion Engine Engine Ion Engine Propulsion Wheel Treads Light Treads Wheel Wheel Utility Medium Armor Plating Device Shield Generator Storage High-capacity Storage Unit Protection Medium Armor Plating Weapon Shock Maul Energy Gun Small Laser Energy Cannon Advanced Beam Cannon Ballistic Gun Heavy Assault Rifle Ballistic Cannon Light Cannon Impact Weapon Shock Maul Build | -11 -10 -10 -9 -9 ------- Run | Scr Mat Min Mat Sto Slots Evolved 2 | . . . 2 . Power . | . . . . . Propulsion . | . . . . . Utility 2 | . . . 2 . Weapon . | . . . . . Parts Attached 51 | 6 2 4 26 13 Power 4 | 1 . 1 1 1 Engine 4 | 1 . 1 1 1 Core . | . . . . . Reactor . | . . . . . Propulsion 11 | 2 1 1 5 2 Treads 4 | 1 . . 2 1 Leg . | . . . . . Wheel 7 | 1 1 1 3 1 Hover . | . . . . . Flight . | . . . . . Utility 19 | 1 . . 14 4 Device 2 | . . . 1 1 Storage 5 | 1 . . 4 . Processor . | . . . . . Hackware . | . . . . . Protection 12 | . . . 9 3 Artifact . | . . . . . Weapon 17 | 2 1 2 6 6 Energy Gun 9 | 2 . 1 5 1 Energy Cannon 1 | . . . . 1 Ballistic Gun 2 | . . 1 1 . Ballistic Cannon 1 | . 1 . . . Launcher . | . . . . . Special Weapon . | . . . . . Impact Weapon 4 | . . . . 4 Slashing Weapon . | . . . . . Piercing Weapon . | . . . . . Special Melee Weapon . | . . . . . Unidentified Prototypes 4 | . . . . 4 Parts Lost 19 | . 2 3 10 4 Power 2 | . . 1 1 . Propulsion 6 | . 1 1 3 1 Utility 4 | . . . 1 3 Weapon 7 | . 1 1 5 . Highest Loss Streak 5 | . 2 3 5 4 Average Slot Usage (%) 85 | . 84 79 75 99 Engine 10 | . 14 12 9 11 Treads 7 | . 14 14 9 . Wheel 14 | . 14 11 9 21 Device 1 | . . . 1 3 Storage 16 | . 14 14 13 22 Protection 14 | . . . 17 18 Energy Gun 5 | . 18 5 5 1 Ballistic Gun 4 | . . 7 7 . Ballistic Cannon 2 | . 9 14 . . Impact Weapon 7 | . . . . 20 Naked Turns 6 | . . . 6 . Heaviest Build 92 | 11 12 14 87 92 Greatest Support 40 | 10 10 20 40 20 Greatest Overweight (x) 8 | 1 1 1 7 8 Average Overweight (x) 2 | . . . 2 4 Largest Inventory Capacity 20 | 6 6 6 20 20 Average Capacity 12 | 5 6 6 10 20 Most Carried 19 | 3 4 2 10 19 Average Carried 7 | 1 3 1 4 15 Final Capacity 20 | 6 6 6 20 20 Final Carried 15 | 3 3 1 10 15 Class Distribution -------------------- 48% | Mutant 29% | Hauler-Mutant 12% | Scavenger-Mutant 8% | Commander-Mutant Dominant Class ---------------- Mutant | -10/Materials Mutant | -10/Mines Mutant | -9/Materials Hauler-Mutant | -9/Storage Resources | -11 -10 -10 -9 -9 ----------- Run | Scr Mat Min Mat Sto Matter Collected 816 | 260 21 76 277 182 Remotely . | . . . . . Salvage Created 1101 | 81 243 21 463 293 Parts 61 | . 17 5 34 5 Haulers Intercepted 1 | . . . . 1 Recyclers Shooed 1 | . . . . 1 Parts Field Recycled . | . . . . . Retrieved Matter . | . . . . . Parts Self-Destructed . | . . . . . Prevented . | . . . . . Kills | -11 -10 -10 -9 -9 ------- Run | Scr Mat Min Mat Sto Combat Hostiles Destroyed 21 | . 5 2 11 3 Melee 1 | . . . . 1 Guns 14 | . 4 2 8 . Cannons 2 | . 1 . 1 . AOE 2 | . . . 2 . Classes Destroyed 11 | 1 5 1 3 1 Worker 5 | . 1 1 1 2 Builder 1 | . 1 . . . Tunneler 1 | . . . 1 . Hauler 1 | . . . . 1 Recycler 3 | 1 1 . . 1 Operator 2 | . 2 . . . Swarmer 4 | . 3 1 . . Grunt 10 | . 2 . 6 2 Brawler 2 | . . . 2 . Sentry 4 | . . . 3 1 Demolisher 1 | . . 1 . . Best Kill Streak 5 | 1 5 3 5 2 Combat Bots Only 4 | . 3 2 4 2 Max Kills in Single Turn 3 | 1 2 1 3 1 Gunslinging 1 | . 1 . . . Exploded 2 | . . . 2 . Melee 1 | . . . . 1 Uniques/NPCs Destroyed . | . . . . . Combat | -11 -10 -10 -9 -9 -------- Run | Scr Mat Min Mat Sto Damage Taken 2647 | . 341 349 1233 724 Core 543 | . 50 90 311 92 Absorbed by Shields 90 | . . . . 90 Core Remaining (%) 72 | 100 . 44 . . Volleys Fired 76 | 1 19 7 49 . Largest 2 | 1 2 2 2 . Hottest 115 | 40 90 85 115 . Shots Fired 122 | 1 38 12 71 . Gun 98 | 1 26 5 66 . Cannon 24 | . 12 7 5 . Launcher . | . . . . . Special . | . . . . . Kinetic 47 | . 12 8 27 . Thermal 55 | . 7 4 44 . Explosive . | . . . . . Electromagnetic 20 | 1 19 . . . Robot Hit Streak 9 | 1 4 2 9 . Robot Miss Streak 4 | . 4 1 3 . Penetration Max . | . . . . . Secondary Targets 2 | . 2 . . . Max Gunslinging Chain 1 | . 1 . . . Shots Hit Robots 97 | 1 17 6 48 25 Core Hits 43 | 1 11 4 26 1 Critical Hits . | . . . . . Critical Kills . | . . . . . Critical Parts Destroyed . | . . . . . Melee Attacks 32 | . . . . 32 Impact 32 | . . . . 32 Slashing . | . . . . . Piercing . | . . . . . Sneak Attacks 8 | . . . . 8 Combat Hostiles . | . . . . . Follow-up Attacks 3 | . . . . 3 Damage Inflicted 2800 | 15 359 83 1007 1336 Guns 842 | 15 173 47 607 . Cannons 173 | . 122 36 15 . Explosions 449 | . 64 . 385 . Melee 1336 | . . . . 1336 Ramming . | . . . . . Kinetic 409 | . 122 46 241 . Thermal 816 | . 13 37 766 . Explosive 64 | . 64 . . . Electromagnetic 175 | 15 160 . . . Impact 1336 | . . . . 1336 Slashing . | . . . . . Piercing . | . . . . . Highest Corruption 1 | . . . . 1 Average Corruption 1 | . . . . 1 Corruption Purged . | . . . . . Effects 1 | . . . . 1 Energy Discharges 1 | . . . . 1 Overload Shots . | . . . . . Overflow Damage 415 | . . . 29 386 Projectiles . | . . . . . Explosions 29 | . . . 29 . Melee 386 | . . . . 386 Knockbacks 8 | . 3 2 . 3 Impact 3 | . . . . 3 Kinetic 5 | . 3 2 . . Secondary . | . . . . . Self-Inflicted Damage 139 | . 27 . 112 . Shots 2 | . 1 . 1 . Rammed . | . . . . . Targets Rammed . | . . . . . Kicked . | . . . . . Crushed . | . . . . . Highest Temperature 361 | . 120 96 361 . Average Temperature 100 | . 41 50 137 . Received Heat Transfer 654 | . 114 . 348 192 Effects 1 | . . . 1 . Matter Decay 1 | . . . 1 . Siege Activations . | . . . . . Robots Corrupted . | . . . . . Combat Hostiles . | . . . . . Parts Fried 6 | . . . . 6 Impact Corruptions 13 | . . . . 13 Robots Melted . | . . . . . Combat Hostiles . | . . . . . Parts Melted 2 | . . 1 1 . Heat Transferred 1228 | . 37 111 1080 . Parts Sabotaged . | . . . . . Parts Stolen . | . . . . . Parts Stripped . | . . . . . Power Chain Reactions . | . . . . . Missiles Intercepted . | . . . . . Alert | -11 -10 -10 -9 -9 ------- Run | Scr Mat Min Mat Sto Peak Influence 342 | 5 193 107 295 342 Initial 71 | . 3 67 41 71 Average 143 | 1 103 81 167 153 Maximum Alert Level 1 | . . . 1 1 Low Security (%) 81 | 100 100 100 79 73 Level 1 18 | . . . 20 26 Level 2 . | . . . . . Level 3 . | . . . . . Level 4 . | . . . . . Level 5 . | . . . . . High Security . | . . . . . Max Security . | . . . . . Squads Dispatched 8 | . 5 . 2 1 Investigation 2 | . 1 . 1 . Extermination . | . . . . . Reinforcement 6 | . 4 . 1 1 Assault . | . . . . . Garrison . | . . . . . Intercept . | . . . . . Construction Impeded . | . . . . . Haulers Reinforced . | . . . . . Stealth | -11 -10 -10 -9 -9 --------- Run | Scr Mat Min Mat Sto Distress Signals 3 | . 3 . . . Communications Jammed . | . . . . . Distress Signals . | . . . . . Times Spotted 47 | . 15 2 16 14 Peak Tracking Total 7 | . 5 2 7 3 Tactical Retreats 2 | . . . 1 1 Traps | -11 -10 -10 -9 -9 ------- Run | Scr Mat Min Mat Sto Traps Triggered 2 | . . . . 2 Indirectly . | . . . . . Trap Hack Attempts . | . . . . . Triggered . | . . . . . Disarmed . | . . . . . Reprogrammed . | . . . . . Reused . | . . . . . Traps Extracted . | . . . . . Installed . | . . . . . Triggered . | . . . . . Machines | -11 -10 -10 -9 -9 ---------- Run | Scr Mat Min Mat Sto Machines Disabled 4 | . 2 . 1 1 Max in Single Turn 2 | . 2 . 1 1 Garrison Access 1 | . . . . 1 Machines Sabotaged . | . . . . . Garrisons Compromised . | . . . . . Overloaded Fab Kills . | . . . . . Fab Network Shutdowns . | . . . . . Hacking | -11 -10 -10 -9 -9 --------- Run | Scr Mat Min Mat Sto Machines Accessed 8 | . . . 4 4 Terminals 6 | . . . 4 2 Fabricators . | . . . . . Repair Stations . | . . . . . Recycling Units 1 | . . . . 1 Scanalyzers . | . . . . . Garrison Access 1 | . . . . 1 Total Hacks 26 | . . . 17 9 Successful 13 | . . . 10 3 Failed 13 | . . . 7 6 Catastrophic . | . . . . . Database Lockouts . | . . . . . Manual 21 | . . . 16 5 Terminals 22 | . . . 17 5 Fabricators . | . . . . . Repair Stations . | . . . . . Recycling Units 1 | . . . . 1 Scanalyzers . | . . . . . Garrison Access 3 | . . . . 3 Terminal Hacks 3 | . . . 3 . Terminal Index 1 | . . . 1 . Registered Components 1 | . . . 1 . Zone Layout 1 | . . . 1 . Fabricator Hacks . | . . . . . Repair Station Hacks . | . . . . . Recycling Unit Hacks 1 | . . . . 1 Retrieve Components 1 | . . . . 1 Scanalyzer . | . . . . . Garrison Access Hacks 1 | . . . . 1 Seal Access 1 | . . . . 1 Unauthorized Hacks 8 | . . . 7 1 Terminals 8 | . . . 7 1 Track 2 | . . . 2 . Botnet 5 | . . . 4 1 Disrupt 1 | . . . 1 . Fabricators . | . . . . . Repair Stations . | . . . . . Recycling Units . | . . . . . Scanalyzers . | . . . . . Garrison Access . | . . . . . Data Cores Recovered . | . . . . . Used . | . . . . . Hacking Detections 6 | . . . 4 2 Full Trace Events 2 | . . . 1 1 Feedback Events . | . . . . . Feedback Blocked . | . . . . . Robot Schematics Acquired . | . . . . . Robots Built . | . . . . . Matter . | . . . . . Time . | . . . . . Total Robot Build Rating . | . . . . . Part Schematics Acquired . | . . . . . Parts Built . | . . . . . Matter . | . . . . . Time . | . . . . . Total Part Build Rating . | . . . . . Parts Repaired . | . . . . . Time . | . . . . . Parts Recycled . | . . . . . Recycled Matter . | . . . . . Retrieved Matter . | . . . . . Retrieved Components 2 | . . . . 2 Parts Scanalyzed . | . . . . . Part Schematics Acquired . | . . . . . Parts Damaged . | . . . . . Bothacking | -11 -10 -10 -9 -9 ------------ Run | Scr Mat Min Mat Sto Used RIF Installer . | . . . . . Robots Hacked . | . . . . . Non-combat . | . . . . . Combat . | . . . . . Robot Hacks Applied . | . . . . . Relay Couplers Released . | . . . . . Robots Rewired . | . . . . . Allies Hacked . | . . . . . Hacks Repelled . | . . . . . Allies | -11 -10 -10 -9 -9 -------- Run | Scr Mat Min Mat Sto Total Allies 10 | . . . . 10 Largest Group 10 | . . . . 10 Highest-Rated Group 88 | . . . . 88 Highest-Rated Ally 16 | . . . . 16 Total Orders . | . . . . . Ally Attacks 35 | . . . . 35 Total Damage 425 | . . . . 425 Kills 9 | . . . . 9 Allies Corrupted . | . . . . . Allies Melted . | . . . . . Intel | -11 -10 -10 -9 -9 ------- Run | Scr Mat Min Mat Sto Robot Analysis Total . | . . . . . Derelict Logs Recovered 2 | . . 2 . . Drone Launches . | . . . . . Drone Recoveries . | . . . . . Exploration | -11 -10 -10 -9 -9 ------------- Run | Scr Mat Min Mat Sto Turns Passed 1617 | 61 201 98 700 557 Spaces Moved 1049 | 54 110 70 463 352 Core 61 | 1 . . 60 . Treads 44 | . . 3 41 . Legs . | . . . . . Wheels 944 | 53 110 67 362 352 Hover . | . . . . . Flight . | . . . . . Fastest Speed 50 | 50 80 90 50 120 Average Speed 109 | 87 89 93 110 121 Slowest Speed 160 | 90 90 160 160 160 Overloaded Moves . | . . . . . Propulsion Burnouts . | . . . . . Robots Hopped . | . . . . . Cave-ins Triggered . | . . . . . Exploration Rate (%) 27 | 4 36 23 26 46 Regions Visited 4 Branch Regions 2 Pre-discovered Areas 1 | . . 1 . . Known Exits Taken . | . . . . . Unknown Exits Taken 4 | 1 1 1 1 . Scrap Searched . | . . . . . Spaces Dug . | . . . . . Terrain Destroyed 47 | . 10 . 37 . Melee . | . . . . . Projectile . | . . . . . AOE 47 | . 10 . 37 . Terrain Rammed . | . . . . . Walls Destroyed . | . . . . . Machines Disabled . | . . . . . Actions | -11 -10 -10 -9 -9 --------- Run | Scr Mat Min Mat Sto Total 1342 | 63 174 90 578 437 Wait 95 | . 43 9 16 27 Move 1045 | 53 109 69 462 352 Hop . | . . . . . Pick Up 26 | 3 1 1 13 8 Fast Attach 22 | 6 . 1 11 4 Attach 17 | . 1 3 9 4 Detach 10 | . . . 6 4 Swap 12 | . 1 . 6 5 Drop 9 | . . . 6 3 Fire 76 | 1 19 7 49 . Melee 28 | . . . . 28 Ram . | . . . . . Kick . | . . . . . Crush . | . . . . . Escape Stasis . | . . . . . Rewire 2 | . . . . 2 Trap . | . . . . . Miscellaneous . | . . . . . Route ------- -11/Scrapyard -10/Materials -10/Mines -9/Materials (discovered 3 exits: Min x2 / *Sto) -9/Storage History --------- Turn | Location | Event 34 | -11/Scrapyard | Discovered new exit (range 14) 62 | -11/Scrapyard | Entered Materials 227 | -10/Materials | Discovered new exit (range 16) 263 | -10/Materials | Entered Mines 264 | -10/Mines | Assembled infested the area 298 | -10/Mines | Learned 4 Materials zone layouts 303 | -10/Mines | Build established: Mutant 310 | -10/Mines | Learned location of Storage (-9) 310 | -10/Mines | Discovered new exit (range 12) 322 | -10/Mines | Core integrity fell below 50% 350 | -10/Mines | Lost 3 parts (1p1n1w) 358 | -10/Mines | Learned Materials security intel 361 | -10/Mines | Entered Materials 361 | -9/Materials | Evolved 2 slots: Utility x2 362 | -9/Materials | Identified exit to Mines 483 | -9/Materials | Lost 5 parts (2n3w) 557 | -9/Materials | Core integrity fell below 50% 571 | -9/Materials | Lost 4 parts (1p1n1u1w) 903 | -9/Materials | Discovered new exit (range 16) 1061 | -9/Materials | Entered Storage 1194 | -9/Storage | Assisted by bots powering up and referring to "LRC-V3" 1282 | -9/Storage | Core integrity fell below 20% 1491 | -9/Storage | Lost 4 parts (1n3u) 1618 | -9/Storage | Destroyed by G-34 Mercenary with Small Laser Last Messages --------------- 01535_ Sneak attack on K-01 Serf. 01535_ Shock Maul follow-up attack on K-01 Serf. 01535_ Destroyed Med. Matter Pod. 01535_ Destroyed Wheel. 01535_ Destroyed Lgt. Ion Engine. 01535_ K-01 Serf system corrupted by crushing effect. 01535_ K-01 Serf destroyed. 01538_ Acquired 10 matter. 01560_ System corrupted: Energy discharge (-64). 01568_ Destroyed Imp. Heat Sink. 01568_ G-47 Trooper system corrupted by crushing effect. 01568_ G-47 Trooper knocked back. 01571_ Destroyed Sml. Laser. 01571_ G-34 Mercenary system corrupted by crushing effect. 01572_ G-34 Mercenary system terminally corrupted. 01572_ Heat Sink fried. 01599_ K-01 Serf cleans the Terminal. 01609_ Destroyed Heat Sink. 01609_ G-34 Mercenary system corrupted by crushing effect. 01609_ Shock Maul follow-up attack on G-34 Mercenary. Map ----- +----------------------------------------------------+ | | | | | ?????????????????????????????????????? | | ?????????????????????????????????????? | | ???#####?????????????????????????????? | | ???# ############################??? | | ???# + #??? | | ???# # ### #??? | | #### # #?# #??? | | # T## #?# #??? | | ######/##+### #??? | | #?# ## ###### ########### | | ??# """"" ## #????# # # | | #???# " * " ## #????# # # | | #???# ?""" " ## #?#### # # | | #???#?""""" ## ### ## %#= # | | +##????" *=* ##%###### =+%! !!!# | | #??# """"" !+ + / # # !!!# | | =#??# # # / # # !!!# | | | #??#####+##### # # # # | | #?????# # #### ##########? | | ####### ####### # ########### | | / #????####### # # | | ####### #??????????# # # | | #?????# #??????????# # """" # | | ###?????# #??????????# @ # """" # | | #???????# #???##?????#g g/ """" # | | #???????# #??"""?????# # """" # | | ######### #? """"" ?## # # | | [[ %% %%% # """"" ## # # | | #########% # ## ##/##+####? | | ######### + ## #???? | | """ # # ##[ #???? | | "" # #?? ## "" #???? | | """ [+% #???? # T" #???? | | ^ % # #??????##### "" "???? | | # #?????????#" T"??? | | = # #?????????#T ""#?? | | ####%#"## #?????????#" ##??? | | ??####### #?????????## ? #???? | | ?? ??? #??????????# a ??? #???? | | ?# ??? #??????????##+###????????? | | ?# ??? #????????????????????????? | | ?###???######????????????????????????? | | ?????????????????????????????????????? | | ?????????????????????????????????????? | | ?????????????????????????????????????? | | ?????????????????????????????????????? | | ?????????????????????????????????????? | | ?????????????????????????????????????? | +----------------------------------------------------+ Best States ------------- Heat Dissipation 38 Energy Generation 14 Energy Capacity 280 Matter Stores 300 Matter Capacity 300 Sight Range 16 Terrain Scan Density 10 Armor Coverage 675 Evasion (%) 50 Recoil Reduction 2 Item Schematics ----------------- None Robot Schematics ------------------ None Fabricated ------------ Nothing Alien Tech Used ----------------- None Achievements -------------- None Challenges ------------ None Game ------ Seed CorruptionReactiveCompressor Manual? 0 Play Time 00:19:43 Cumulative 117.5 hours Start 2021.10.12 @ 22:32:23 End 2021.10.12 @ 22:50:42 Sessions 1 Manual Loads 0 Difficulty Rogue Special Mode None Game No. 89 Rogue 87 Adventurer 2 Explorer 0 Win Type - Total 6 Types 3/0/1/2/0/0/0/0/0 Lore% 70 Gallery% 76 Achievement% 65 Wizard Run 0 Options --------- ASCII 0 Keyboard 1 Movement Numpad Keybinds 0 Fullscreen 1 Font 12/Smallcaps Map View 83x54 Tactical HUD 1 Map Filters NONE Filters NONE Steam 1 RUN: c49d1a52-34c1-4fd0-96a9-9e2005e552fc